Cogmind - Beta 14 @@@ ROGUE MODE // 2024.08.27 @ 20:38:45 Player: MadBadger Result: Self-destructed Performance ------------- Evolutions (2) 1000 Regions Visited (5) 1000 Robots Destroyed (41) 205 Value Destroyed (879) 879 Prototype IDs (24) 480 Alien Tech Used (0) 0 Bonus (300) 300 TOTAL SCORE: 3864 Bonus ------- Aligned with FarCom 300 Cogmind --------- Core Integrity 176/550 Matter 116/300 Energy 41/100 System Corruption 0% Temperature Warm (129) Movement Core (700) Ox13 Location -8/Materials Parts ------- > --- POWER (1) -------- (None) > --- PROPULSION (3) --- (None) > --- UTILITY (3) ------ High-capacity Storage Unit > --- WEAPON (4) ------- (None) > --- INVENTORY (20) --- Superbattery (1500) Signal Interpreter Mining Laser Peak State ------------ > --- POWER ------------ Ion Engine > --- PROPULSION ------- Light Treads Light Treads Light Treads > --- UTILITY ---------- High-capacity Storage Unit Structural Scanner Experimental Sensor Array > --- WEAPON ----------- Assault Rifle Assault Rifle Assault Rifle Grenade Launcher > --- INVENTORY -------- Light Ion Engine Superbattery Signal Interpreter EM Pulse Gun Medium Laser Mining Laser [Rating: 20] Favorites ----------- Power Ion Engine Engine Ion Engine Propulsion Light Treads Treads Light Treads Utility Structural Scanner Device Structural Scanner Storage Small Storage Unit Weapon Assault Rifle Energy Gun Medium Laser Ballistic Gun Assault Rifle Launcher Grenade Launcher Build | -11 -10 -10 -10 -9 -8 ------- Run | Yrd Mat Min Exi Min Mat Slots Evolved 4 | . . . . . 4 Power . | . . . . . . Propulsion 1 | . . . . . 1 Utility 1 | . . . . . 1 Weapon 2 | . . . . . 2 Parts Attached 24 | 6 6 1 2 2 7 Power 2 | 1 . . . . 1 Engine 2 | 1 . . . . 1 Core . | . . . . . . Reactor . | . . . . . . Propulsion 6 | 2 2 1 . . 1 Treads 6 | 2 2 1 . . 1 Leg . | . . . . . . Wheel . | . . . . . . Hover . | . . . . . . Flight . | . . . . . . Utility 6 | 1 1 . 2 1 1 Device 3 | . 1 . . 1 1 Storage 3 | 1 . . 2 . . Processor . | . . . . . . Hackware . | . . . . . . Protection . | . . . . . . Artifact . | . . . . . . Weapon 10 | 2 3 . . 1 4 Energy Gun 3 | 1 . . . . 2 Energy Cannon . | . . . . . . Ballistic Gun 4 | 1 1 . . 1 1 Ballistic Cannon . | . . . . . . Launcher 3 | . 2 . . . 1 Special Weapon . | . . . . . . Impact Weapon . | . . . . . . Slashing Weapon . | . . . . . . Piercing Weapon . | . . . . . . Special Melee Weapon . | . . . . . . Unidentified Prototypes 1 | . . . . 1 . Parts Lost 13 | . . . . . 13 Power 2 | . . . . . 2 Propulsion 3 | . . . . . 3 Utility 2 | . . . . . 2 Weapon 6 | . . . . . 6 Highest Loss Streak 12 | . . . . . 12 To Critical Strikes . | . . . . . . Average Slot Usage (%) 97 | . 98 100 100 100 85 Engine 13 | . 14 14 14 14 8 Treads 27 | . 27 28 28 28 19 Device 13 | . 12 14 14 14 17 Storage 13 | . 14 14 14 14 9 Ballistic Gun 15 | . 13 14 14 15 23 Launcher 12 | . 13 14 14 12 7 Peak Build Rating 20 | 6 7 7 8 16 20 Average Rating 8 | 4 6 7 7 14 18 On Entrance 7 | . 6 7 7 8 16 Naked Turns . | . . . . . . Heaviest Build 56 | 14 16 16 51 51 56 Greatest Support 60 | 40 40 40 40 40 60 Greatest Overweight (x) 16 | . 5 . 1 1 16 Average Overweight (x) . | . . . . 1 . Largest Inventory Capacity 20 | 8 8 8 20 20 20 Average Capacity 13 | 6 8 8 18 20 20 Most Carried 10 | 4 8 8 9 10 9 Average Carried 7 | 2 7 8 8 9 5 Final Capacity 20 | 8 8 8 20 20 20 Final Carried 10 | 4 8 8 9 10 3 Class Distribution -------------------- 82% | Mutant 17% | Skirmisher Dominant Class ---------------- Mutant | -10/Materials Mutant | -10/Mines Mutant | -10/Exiles Skirmisher | -9/Mines Skirmisher | -8/Materials Resources | -11 -10 -10 -10 -9 -8 ----------- Run | Yrd Mat Min Exi Min Mat Matter Collected 925 | 213 408 44 208 52 . Remotely . | . . . . . . Salvage Created 664 | . 467 67 . 35 95 Parts 68 | . 46 14 . 1 7 Haulers Intercepted 1 | . 1 . . . . Recyclers Shooed 4 | . 4 . . . . Parts Field Recycled . | . . . . . . Retrieved Matter . | . . . . . . Parts Self-Destructed . | . . . . . . Prevented . | . . . . . . Kills | -11 -10 -10 -10 -9 -8 ------- Run | Yrd Mat Min Exi Min Mat Combat Hostiles Destroyed 24 | . 14 6 . 1 3 Guns 5 | . 2 2 . 1 . AOE 19 | . 12 4 . . 3 Classes Destroyed 9 | . 9 . . . . Worker 3 | . 2 . . . 1 Builder 6 | . 5 . . . 1 Tunneler 1 | . 1 . . . . Hauler 1 | . 1 . . . . Recycler 1 | . 1 . . . . Operator 2 | . 2 . . . . Watcher 3 | . 3 . . . . Swarmer 9 | . 3 6 . . . Grunt 15 | . 11 . . 1 3 Best Kill Streak 6 | . 6 3 . 1 3 Combat Bots Only 3 | . 3 3 . 1 3 Max Kills in Single Turn 3 | . 3 2 . 1 1 Gunslinging . | . . . . . . Exploded 2 | . 2 2 . . 1 Melee . | . . . . . . Uniques/NPCs Destroyed . | . . . . . . Combat | -11 -10 -10 -10 -9 -8 -------- Run | Yrd Mat Min Exi Min Mat Hostile Shots Fired 170 | . 35 36 . 10 89 Missed 52 | . 14 15 . 1 22 Damage Taken 1698 | . 308 186 . 98 1106 Core 474 | . 61 39 . . 374 Absorbed by Shields . | . . . . . . Regen/Repaired (Parts) 57 | . 57 . . . . Core Remaining (%) 80 | 100 . . . 60 . Volleys Fired 92 | . 62 10 . 7 13 Largest 4 | . 2 2 . 2 4 Hottest 90 | . 50 50 . 40 90 Shots Fired 156 | . 89 15 . 14 38 Gun 107 | . 53 10 . 14 30 Cannon . | . . . . . . Launcher 49 | . 36 5 . . 8 Special . | . . . . . . Kinetic 101 | . 53 10 . 14 24 Thermal 5 | . . . . . 5 Explosive 49 | . 36 5 . . 8 Electromagnetic 1 | . . . . . 1 Robot Hit Streak 8 | . 5 6 . 5 8 Robot Miss Streak 4 | . 4 2 . 1 3 Penetration Max . | . . . . . . Secondary Targets . | . . . . . . Shots Hit Robots 59 | . 26 4 . 11 18 Core Hits 75 | . 52 6 . 2 15 Critical Kills . | . . . . . . Critical Parts Destroyed . | . . . . . . Critical Strikes 2 | . . . . . 2 Burn 2 | . . . . . 2 Melee Attacks . | . . . . . . Impact . | . . . . . . Slashing . | . . . . . . Piercing . | . . . . . . Sneak Attacks . | . . . . . . Combat Hostiles . | . . . . . . Follow-up Attacks . | . . . . . . Damage Inflicted 3055 | . 2062 191 . 132 670 Guns 682 | . 305 38 . 132 207 Cannons . | . . . . . . Explosions 2373 | . 1757 153 . . 463 Melee . | . . . . . . Ramming . | . . . . . . Kinetic 620 | . 305 38 . 132 145 Thermal 213 | . 163 . . . 50 Explosive 2210 | . 1594 153 . . 463 Electromagnetic 12 | . . . . . 12 Impact . | . . . . . . Slashing . | . . . . . . Piercing . | . . . . . . Highest Corruption 1 | . 1 1 1 1 . Average Corruption 1 | . 1 1 1 1 . Corruption Purged . | . . . . . . Corruption Blocked . | . . . . . . Effects 28 | . 3 2 21 2 . Message Errors 6 | . 1 2 3 . . Matter Fused 8 | . 1 . 7 . . Heat Flow Errors 4 | . 1 . 3 . . Energy Discharges 3 | . . . 2 1 . Data Loss (minor) 2 | . . . 1 1 . Data Loss (major) 2 | . . . 2 . . Alerts 3 | . . . 3 . . Overload Shots . | . . . . . . Overflow Damage 67 | . 67 . . . . Projectiles . | . . . . . . Explosions 67 | . 67 . . . . Melee . | . . . . . . Knockbacks . | . . . . . . Impact . | . . . . . . Kinetic . | . . . . . . Secondary . | . . . . . . Self-Inflicted Damage 56 | . 36 20 . . . Shots 3 | . 1 2 . . . Rammed . | . . . . . . Targets Rammed . | . . . . . . Kicked . | . . . . . . Crushed . | . . . . . . Highest Temperature 188 | . 188 . 131 . 129 Average Temperature 45 | . 35 . 64 . 43 Received Heat Transfer 669 | . 156 . . 54 459 Siege Activations . | . . . . . . Robots Corrupted . | . . . . . . Combat Hostiles . | . . . . . . Parts Fried . | . . . . . . Impact Corruptions . | . . . . . . Robots Melted . | . . . . . . Combat Hostiles . | . . . . . . Parts Melted . | . . . . . . Heat Transferred 396 | . 100 . . . 296 Parts Sabotaged . | . . . . . . Parts Stolen . | . . . . . . Parts Stripped . | . . . . . . Power Chain Reactions . | . . . . . . Alert | -11 -10 -10 -10 -9 -8 ------- Run | Yrd Mat Min Exi Min Mat Peak Influence 322 | . 322 208 . 20 223 Initial 47 | . . 47 . . 7 Average 111 | . 147 168 . 1 65 Maximum Alert Level 1 | . 1 1 . . 1 Low Security (%) 88 | 100 90 43 . 100 91 Level 1 11 | . 9 56 . . 8 Level 2 . | . . . . . . Level 3 . | . . . . . . Level 4 . | . . . . . . Level 5 . | . . . . . . High Security . | . . . . . . Max Security . | . . . . . . Squads Dispatched 4 | . 3 . . . 1 Investigation . | . . . . . . Extermination . | . . . . . . Reinforcement 4 | . 3 . . . 1 Assault . | . . . . . . Garrison . | . . . . . . Intercept . | . . . . . . Searches Triggered . | . . . . . . Construction Impeded . | . . . . . . Haulers Reinforced . | . . . . . . Active Scanning Responses . | . . . . . . Cargo Convoy Interrupts . | . . . . . . Stealth | -11 -10 -10 -10 -9 -8 --------- Run | Yrd Mat Min Exi Min Mat Distress Signals 3 | . 2 . . . 1 Communications Jammed . | . . . . . . Distress Signals . | . . . . . . Times Spotted 48 | . 26 6 . 1 15 Peak Tracking Total 6 | . 4 3 . 1 6 Tactical Retreats 2 | . . . . . 2 Traps | -11 -10 -10 -10 -9 -8 ------- Run | Yrd Mat Min Exi Min Mat Traps Triggered 3 | . 3 . . . . Indirectly . | . . . . . . Trap Hack Attempts . | . . . . . . Triggered . | . . . . . . Disarmed . | . . . . . . Reprogrammed . | . . . . . . Reused . | . . . . . . Traps Extracted . | . . . . . . Installed . | . . . . . . Triggered . | . . . . . . Machines | -11 -10 -10 -10 -9 -8 ---------- Run | Yrd Mat Min Exi Min Mat Machines Disabled 7 | . 5 . . . 2 Max in Single Turn 2 | . 1 . . . 2 Machines Repaired . | . . . . . . Machines Dismantled . | . . . . . . Machines Sabotaged . | . . . . . . Overloaded Fab Kills . | . . . . . . Hacking | -11 -10 -10 -10 -9 -8 --------- Run | Yrd Mat Min Exi Min Mat Machines Accessed 5 | . 4 . 1 . . Terminals 1 | . 1 . . . . Fabricators . | . . . . . . Repair Stations 1 | . 1 . . . . Recycling Units 2 | . 2 . . . . Scanalyzers . | . . . . . . Garrison Access . | . . . . . . Total Hacks 9 | . 8 . 1 . . Successful 7 | . 6 . 1 . . Failed 2 | . 2 . . . . Catastrophic . | . . . . . . Database Lockouts . | . . . . . . Manual 1 | . . . 1 . . Terminals 2 | . 2 . . . . Fabricators . | . . . . . . Repair Stations 2 | . 2 . . . . Recycling Units 4 | . 4 . . . . Scanalyzers . | . . . . . . Garrison Access . | . . . . . . Terminal Hacks 2 | . 1 . 1 . . Locate Traps 1 | . 1 . . . . Derelict Proto ID Bank 1 | . . . 1 . . Fabricator Hacks . | . . . . . . Repair Station Hacks 2 | . 2 . . . . Scan Component 1 | . 1 . . . . Repair 1 | . 1 . . . . Recycling Unit Hacks 3 | . 3 . . . . Retrieve Matter 2 | . 2 . . . . Retrieve Components 1 | . 1 . . . . Scanalyzer . | . . . . . . Garrison Access Hacks . | . . . . . . Unauthorized Hacks . | . . . . . . Terminals . | . . . . . . Fabricators . | . . . . . . Repair Stations . | . . . . . . Recycling Units . | . . . . . . Scanalyzers . | . . . . . . Garrison Access . | . . . . . . Data Cores Recovered . | . . . . . . Used . | . . . . . . Hacking Detections 3 | . 3 . . . . Full Trace Events . | . . . . . . Feedback Events . | . . . . . . Feedback Blocked . | . . . . . . Robot Schematics Acquired . | . . . . . . Robots Built . | . . . . . . Authchips . | . . . . . . Time . | . . . . . . Total Robot Build Rating . | . . . . . . Part Schematics Acquired . | . . . . . . Parts Built . | . . . . . . Authchips . | . . . . . . Time . | . . . . . . Total Part Build Rating . | . . . . . . Parts Repaired 1 | . 1 . . . . Time 26 | . 26 . . . . Parts Recycled . | . . . . . . Recycled Matter . | . . . . . . Retrieved Matter 127 | . 127 . . . . Retrieved Components 10 | . 10 . . . . Parts Scanalyzed . | . . . . . . Part Schematics Acquired . | . . . . . . Parts Damaged . | . . . . . . Bothacking | -11 -10 -10 -10 -9 -8 ------------ Run | Yrd Mat Min Exi Min Mat Used RIF Installer . | . . . . . . Robots Hacked . | . . . . . . Non-combat . | . . . . . . Combat . | . . . . . . Robot Hacks Applied . | . . . . . . Relay Couplers Released . | . . . . . . Fabnet Peak Effective % . | . . . . . . Robots Rewired . | . . . . . . Allies Hacked . | . . . . . . Hacks Repelled . | . . . . . . Allies | -11 -10 -10 -10 -9 -8 -------- Run | Yrd Mat Min Exi Min Mat Total Allies . | . . . . . . Largest Group . | . . . . . . Highest-Rated Group . | . . . . . . Highest-Rated Ally . | . . . . . . Total Orders . | . . . . . . Ally Attacks . | . . . . . . Total Damage . | . . . . . . Kills . | . . . . . . Allies Corrupted . | . . . . . . Allies Melted . | . . . . . . Intel | -11 -10 -10 -10 -9 -8 ------- Run | Yrd Mat Min Exi Min Mat Robot Analysis Total . | . . . . . . Derelict Logs Recovered 1 | . . 1 . . . Drone Launches . | . . . . . . Drone Recoveries . | . . . . . . Exploration | -11 -10 -10 -10 -9 -8 ------------- Run | Yrd Mat Min Exi Min Mat Turns Passed 5039 | 82 2053 269 1622 531 482 Spaces Moved 2472 | 45 1149 152 728 209 189 Core 11 | 2 2 . . . 7 Treads 2461 | 43 1147 152 728 209 182 Legs . | . . . . . . Wheels . | . . . . . . Hover . | . . . . . . Flight . | . . . . . . Fastest Speed 50 | 50 160 160 160 240 160 Average Speed 189 | 155 160 160 222 240 211 Slowest Speed 850 | 160 300 160 240 240 850 Overloaded Moves . | . . . . . . Propulsion Burnouts . | . . . . . . Robots Hopped . | . . . . . . Cave-ins Triggered . | . . . . . . Exploration Rate (%) 45 | 4 99 35 92 29 15 Regions Visited 5 Branch Regions 3 Pre-discovered Areas . | . . . . . . Known Exits Taken 1 | . . 1 . . . Unknown Exits Taken 4 | 1 1 . 1 1 . Scrap Searched 1 | . . . . 1 . Spaces Dug . | . . . . . . Terrain Destroyed 255 | . 157 24 . . 74 Melee . | . . . . . . Projectile . | . . . . . . AOE 255 | . 157 24 . . 74 Terrain Rammed . | . . . . . . Walls Destroyed . | . . . . . . Machines Disabled . | . . . . . . Actions | -11 -10 -10 -10 -9 -8 --------- Run | Yrd Mat Min Exi Min Mat Total 2688 | 54 1270 162 733 224 245 Wait 89 | . 46 . 1 6 36 Move 2467 | 44 1148 151 727 208 189 Hop . | . . . . . . Pick Up 12 | 4 6 . 1 1 . Fast Attach 11 | 6 5 . . . . Attach 7 | . . . . . 7 Detach . | . . . . . . Swap 6 | . 1 1 2 2 . Drop 4 | . 2 . 2 . . Fire 92 | . 62 10 . 7 13 Melee . | . . . . . . Ram . | . . . . . . Kick . | . . . . . . Crush . | . . . . . . Escape Stasis . | . . . . . . Rewire . | . . . . . . Trap . | . . . . . . Miscellaneous . | . . . . . . Route ------- -11/Scrapyard -10/Materials (discovered 4 exits: [*Mat x3] / [*Min]) -10/Mines -10/Exiles (discovered 2 exits: [*Min x2]) -9/Mines -8/Materials History --------- Turn | Location | Event 15 | -11/Scrapyard | Discovered new exit (range 15) 83 | -11/Scrapyard | Entered Materials 235 | -10/Materials | Discovered new exit (range 14) 310 | -10/Materials | Build established: Mutant 605 | -10/Materials | Discovered new exit (range 11) 857 | -10/Materials | Discovered new exit (range 16) 1256 | -10/Materials | Repaired Grenade Launcher 1379 | -10/Materials | Discovered new exit (range 11) 2136 | -10/Materials | Entered Mines 2321 | -10/Mines | Identified exit to Exiles 2397 | -10/Mines | Deemed a non-threat by the Exiles lab entrance 2405 | -10/Mines | Entered Exiles 2434 | -10/Exiles | Discovered new exit (range 14) 2471 | -10/Exiles | Met 8R-AWN 2497 | -10/Exiles | Met EX-HEX 2561 | -10/Exiles | Met EX-DEC 2707 | -10/Exiles | Discovered new exit (range 11) 2895 | -10/Exiles | Met EX-BIN 2934 | -10/Exiles | Aligned with FarCom system 2936 | -10/Exiles | Given EX-Vault access code 2996 | -10/Exiles | Opened EX-Vault 3020 | -10/Exiles | Found Superbattery 3074 | -10/Exiles | Warned to stay clear of 0b10 Research branches 3246 | -10/Exiles | Visited The Gauntlet 4027 | -10/Exiles | Left Exiles lab with Superbattery 4027 | -10/Exiles | Entered Mines 4111 | -9/Mines | Found a damaged Exp. Sensor Array with a note attached 4121 | -9/Mines | Found Prototype Device 4122 | -9/Mines | Identified Exp. Sensor Array 4380 | -9/Mines | Discovered new exit (range 10) 4428 | -9/Mines | Build established: Skirmisher 4558 | -9/Mines | Entered Materials 4558 | -8/Materials | Evolved 4 slots: Propulsion x1, Utility x1, Weapon x2 5035 | -8/Materials | Core integrity fell below 50% 5040 | -8/Materials | Self-destructed Last Messages --------------- 05016_ R-06 Scavenger collects Structural Scanner. 05019_ W-25 Informer destroyed. 05019_ K-01 Serf collects debris. 05020_ R-06 Scavenger collects Lgt. Ion Engine. 05021_ U-05 Engineer builds a Wall. 05022_ K-01 Serf collects debris. 05024_ R-06 Scavenger collects Wheel. 05025_ U-05 Engineer lays Concrete. 05028_ K-01 Serf collects debris. 05029_ Critical hit (Burn: +37). 05030_ EM Pulse Gun destroyed. 05031_ Exp. Sensor Array destroyed. 05034_ G-47 Trooper suffers critical hit (Burn). 05036_ G-47 Trooper overheating. 05037_ Structural Scanner destroyed. 05038_ G-47 Trooper heat short circuits Lgt. Nuclear Core. 05038_ Med. Laser destroyed. 05038_ R-06 Scavenger collects Visual Processing Unit. 05039_ G-47 Trooper heat short circuits Aluminum Leg. 05039_ K-01 Serf collects debris. Map ----- +----------------------------------------------------+ | ????????????????? #### " ##?????????? | | ?????????????????#+##########"""/##"" ##?????????? | | ????????????????? "#####?????????? | | ????????????????? ######?????????? | | ????????????????? ###????????????? | | ?????????????????? ########### ##?????????????? | | ??????????????????? # """" # ##?????????????? | | ????????????????????????????? # ##?????????????? | | ?????????????????????????????"# ##?????????????? | | ?????????????????????????????T# ##?????????????? | | ?????????????????????????????"# ##?????????????? | | ????????????????????????????? # ###????????????? | | ??????????????????? ##Y######## ###????????????? | | ??????????????????? ########### #### ????? | | ??????????????????? # ! # #########+##???? | | ??????????????????? # # # ##???? | | ??????????????????? # """ """ # # """ """ ##???? | | ??????????????????? # ?"" """ # """ """ ##???? | | ??????????????????? # ?"" """ # """w""" ##???? | | ??????????????????? # # + ##???? | | ??????????????????? # ! # # ##???? | | ??????????????????? # # %# ##???? | | ??????????????????? ########### # ##???? | | ?????????????#### ? ########### ##########?????? | | ?????????????#### ########### # | # ?????? | | ?????????? a @% r %%# # ???????? | | ?????????? k ! # ???????? | | ?????????? gg Y # # ???????? | | ??????????############ g####### ####### ???????? | | ??????????############ ####### ####### ??? | | ????????????????????## ?????## ##########/#??? | | ????????????????????## ?????## ??? | | ????????????????????## ?????##% T %??? | | ????????????????????## ?????##% ?? | | ????????????????????????????## #######"##+##?? | | ????????????????????????????### ######## ?? | | ???????????????????????????? # ###????????????? | | ????????????????????????????? # ##?????????????? | | ????????????????????????????? # ##?????????????? | | ????????????????????????????? # # ?????????????? | | ????????????????????????????? # # ?????????????? | | ????????????????????????????? # # ?????????????? | | ????????????????????????????? # # ?????????????? | | ????????????????????????????? # # ?????????????? | | ??????????????????????????????? # ?????????????? | | ??????????????????????????????? + ?????????????? | | ??????????????????????????????? # ?????????????? | | ??????????????????????????????? # ?????????????? | | ??????????????????????????????? ##?????????????? | | ?????????????????????????????????????????????????? | +----------------------------------------------------+ Best States ------------- Heat Dissipation 31 Energy Generation 10 Energy Capacity 250 Matter Stores 300 Matter Capacity 300 Sight Range 16 Robot Scan Range 20 Terrain Scan Density 10 Evasion (%) 40 Recoil Reduction 3 Item Schematics ----------------- None Robot Schematics ------------------ None Fabricated ------------ Nothing Alien Tech Used ----------------- None Achievements -------------- None Challenges ------------ None Game ------ Seed GuidedTerrabombDiverter Manual? 0 Play Time 00:27:39 Cumulative 13.3 hours Start 2024.08.27 @ 20:10:22 End 2024.08.27 @ 20:38:45 Sessions 1 Manual Loads 0 Difficulty Rogue Special Mode None Game No. 22 Rogue 22 Adventurer 0 Explorer 0 Win Type - Total 0 Types 0/0/0/0/0/0/0/0/0 Lore% 6 Gallery% 11 Achievement% 13 Wizard Run 0 Options --------- Layout 0 ASCII 0 Keyboard 1 Movement Numpad Keybinds 0 Fullscreen 1 Font 24/Smallcaps Map View 76x50 Zoom Use 0% Tactical HUD 1 Map Filters NONE Filters NONE Steam 1 RUN: dfe9f279-51a1-4ed3-a1f4-286c11296088